bitfinex-derivatives/quotes_BTCF0:USTF0_20250318
["timestamp","ask_amount","ask_price","bid_price","bid_amount"]
[1742312957159,0.03398314,81889.0,81883.0,0.0610672]
[1742312957367,0.2149958,81887.0,81886.0,0.1831922]
[1742312957557,0.3442619,81887.0,81886.0,0.0610645]
[1742312957757,0.2760619,81887.0,81886.0,0.0610645]
[1742312957958,0.2760619,81887.0,81879.0,0.0610702]
[1742312957959,0.1221501,81873.0,81867.0,0.01280864]
[1742312958255,0.1539665,81862.0,81861.0,0.3608]
[1742312958457,0.1221844,81851.0,81850.0,0.3054493]
[1742312958662,0.122181,81853.0,81852.0,0.0610907]
[1742312959054,0.122181,81853.0,81852.0,0.1832707]
[1742312959267,0.222181,81853.0,81852.0,0.1832707]
[1742312959469,0.222181,81853.0,81852.0,0.0610907]
[1742312959970,0.222181,81853.0,81849.0,0.27864459]
[1742312959971,0.1221844,81850.0,81849.0,0.21755199]
[1742312960562,0.1221919,81845.0,81844.0,0.00018326]
[1742312960776,0.6090719,81845.0,81844.0,0.12237666]
[1742312961273,0.6080719,81845.0,81844.0,0.00018326]
[1742312961856,0.61709066,81845.0,81844.0,0.00218326]
[1742312962059,0.1222038,81838.0,81837.0,0.1222026]
[1742312962266,0.6091238,81838.0,81837.0,0.1222026]
[1742312963056,0.6393238,81838.0,81837.0,0.1222026]
[1742312963773,0.1222098,81833.0,81832.0,0.2444182]
[1742312964665,0.1222098,81833.0,81832.0,0.1222091]
[1742312964866,0.2232098,81833.0,81832.0,0.1222091]
[1742312965065,0.001,81833.0,81832.0,0.1222091]
[1742312965374,0.1232098,81833.0,81832.0,0.1222091]
[1742312965567,0.1232098,81833.0,81832.0,0.13498728]
[1742312965763,0.1957098,81833.0,81832.0,0.13498728]
[1742312966462,0.1548098,81833.0,81832.0,0.13498728]
[1742312968074,0.1548098,81833.0,81828.0,0.0611079]
[1742312968075,0.1222158,81829.0,81828.0,0.0611079]
[1742312968472,0.1222158,81829.0,81822.0,1.010264]
[1742312968473,0.1222248,81823.0,81822.0,1.010264]
[1742312968676,0.1222427,81812.0,81811.0,0.1222356]
[1742312969367,0.1222427,81812.0,81811.0,0.1855356]
[1742312969575,0.12612,81818.0,81817.0,0.1222337]
[1742312969778,0.3107001,81828.0,81817.0,0.1222337]
[1742312969779,0.0323,81819.0,81818.0,0.1222322]
[1742312969968,0.0323,81819.0,81818.0,0.1855322]
[1742312970367,0.0323,81819.0,81818.0,0.1554322]
[1742312970673,0.1868307,81819.0,81818.0,0.1554322]
[1742312971065,0.1878307,81819.0,81818.0,0.1554322]
[1742312971268,0.1878307,81819.0,81818.0,0.1222322]
[1742312971472,0.2878307,81819.0,81818.0,0.1222322]
[1742312971673,0.2888307,81819.0,81818.0,0.1222322]
[1742312971874,0.1888307,81819.0,81818.0,0.1222322]
[1742312972073,0.1898307,81819.0,81818.0,0.1222322]
[1742312972775,0.1888307,81819.0,81818.0,0.1222322]
[1742312972974,0.0373,81819.0,81818.0,0.1222322]
[1742312973475,0.0353,81819.0,81818.0,0.1222322]
[1742312973666,0.006,81819.0,81818.0,0.1842322]
[1742312974078,0.004,81819.0,81818.0,0.1842322]
[1742312974282,0.006,81819.0,81818.0,0.1842322]
[1742312975479,0.005,81819.0,81818.0,0.1842322]
[1742312976383,0.0354,81819.0,81818.0,0.1842322]
[1742312976581,0.0374,81819.0,81818.0,0.1842322]
[1742312978772,0.0344,81819.0,81818.0,0.1842322]
[1742312978974,0.0364,81819.0,81818.0,0.1842322]
[1742312979182,0.004,81819.0,81818.0,0.1842322]
[1742312979874,0.11430024,81830.0,81818.0,0.1842322]
[1742312979875,0.0331,81830.0,81829.0,0.1222158]
[1742312980081,0.12616,81832.0,81831.0,0.1222128]
[1742312980480,0.12616,81832.0,81831.0,0.1857128]
[1742312980676,0.2483713,81832.0,81831.0,0.1222128]
[1742312980875,0.2483713,81832.0,81823.0,0.1833333]
[1742312980876,0.0611117,81824.0,81823.0,0.1833333]
[1742312981081,0.0611117,81824.0,81823.0,0.18351656]
[1742312981270,0.0611117,81824.0,81823.0,0.24701656]
[1742312981471,0.1254117,81824.0,81823.0,0.24701656]
[1742312982181,0.2254117,81824.0,81823.0,0.24701656]
[1742312982684,0.2284117,81824.0,81823.0,0.24701656]
[1742312983475,0.3545717,81824.0,81823.0,0.00018326]
[1742312983674,0.2565717,81824.0,81823.0,0.12240806]
[1742312983890,0.3565717,81824.0,81823.0,0.12240806]
[1742312984793,0.19546,81824.0,81823.0,0.12240806]
[1742312985287,0.19546,81824.0,81823.0,0.18740806]
[1742312985986,0.13116,81824.0,81823.0,0.18740806]
[1742312986281,0.004,81824.0,81823.0,0.18740806]
[1742312987491,0.1262233,81824.0,81823.0,0.18740806]
[1742312987684,0.1262233,81824.0,81823.0,0.54820806]
[1742312987889,0.1893233,81824.0,81823.0,0.18740806]
[1742312988079,0.1903233,81824.0,81823.0,0.18740806]
[1742312988791,0.005,81824.0,81823.0,0.18740806]
[1742312989887,0.1272233,81824.0,81823.0,0.18740806]
[1742312990283,0.1884233,81824.0,81823.0,0.18740806]
[1742312990589,0.1884233,81824.0,81823.0,0.00018326]
[1742312990791,0.20123948,81824.0,81823.0,0.00018326]
[1742312990982,0.1884233,81824.0,81823.0,0.00018326]
[1742312991479,0.2196233,81824.0,81823.0,2.809e-05]
[1742312992487,0.1884233,81824.0,81823.0,0.12225289]
[1742312992880,0.1884233,81824.0,81823.0,0.18385289]
[1742312994488,0.005,81824.0,81823.0,0.18385289]
[1742312995280,0.1272233,81824.0,81823.0,0.18385289]
[1742312995478,0.1272233,81824.0,81823.0,0.15295289]
[1742312995690,0.1891233,81824.0,81823.0,0.15295289]
[1742312995893,0.1891233,81824.0,81823.0,0.18345289]
[1742312996478,0.6259434,81824.0,81823.0,2.809e-05]
[1742312996683,0.6575434,81824.0,81823.0,0.12225289]
[1742312997383,0.6575434,81824.0,81823.0,2.809e-05]
[1742312998086,0.6599876,81824.0,81823.0,2.809e-05]
[1742313000397,0.1222472,81808.0,81807.0,0.1536487]
[1742313000593,0.1222472,81808.0,81807.0,0.0314]
[1742313000800,0.1222516,81805.0,81804.0,0.0303]
[1742313001100,0.4830516,81805.0,81804.0,0.0303]
[1742313001293,0.5467516,81805.0,81804.0,0.1525531]
[1742313001605,0.5457516,81805.0,81804.0,0.1839531]
[1742313001804,0.1222561,81802.0,81800.0,0.2222591]
[1742313001983,0.1222561,81802.0,81786.0,0.00068]
[1742313001984,0.1222726,81791.0,81786.0,0.00068]
[1742313002183,0.1861741,81790.0,81789.0,0.33982609]
[1742313002398,0.1822741,81790.0,81789.0,0.33982609]
[1742313002695,0.2822741,81790.0,81789.0,0.1222741]
[1742313002901,0.1822741,81790.0,81789.0,0.1222741]
[1742313003109,0.06,81790.0,81789.0,0.1222741]
[1742313003312,0.0316,81790.0,81789.0,0.1860741]
[1742313003791,0.1557741,81790.0,81789.0,0.1860741]
[1742313003996,0.1834283,81784.0,81781.0,0.0611433]
[1742313004189,0.15962,81783.0,81782.0,0.122286]
[1742313004503,0.2769045,81783.0,81782.0,0.186086]
[1742313004818,0.15272,81783.0,81782.0,0.186086]
[1742313005101,0.0236,81783.0,81782.0,0.186086]
[1742313005284,0.1222791,81787.0,81786.0,0.12228]
[1742313005492,0.12612,81788.0,81787.0,0.1222786]
[1742313005786,0.12612,81798.0,81790.0,0.1222741]
[1742313005993,0.1222645,81797.0,81790.0,0.1222741]
[1742313006199,0.12227,81793.0,81790.0,0.1848741]
[1742313006402,0.12245598,81791.0,81790.0,0.1848741]
[1742313006901,0.15485598,81791.0,81790.0,0.1848741]
[1742313007102,0.00018338,81791.0,81790.0,0.1848741]
[1742313007900,0.00318338,81791.0,81790.0,0.1848741]
[1742313008696,0.00518338,81791.0,81790.0,0.1848741]
[1742313010191,0.12645598,81791.0,81790.0,0.1848741]
[1742313010401,0.12645598,81791.0,81790.0,0.0626]
[1742313010601,0.18815598,81791.0,81790.0,0.1848741]
[1742313010900,0.18715598,81791.0,81790.0,0.1848741]
[1742313011107,0.31131598,81791.0,81790.0,0.1222741]
[1742313011296,0.31331598,81791.0,81790.0,0.1222741]
[1742313011604,0.31331598,81791.0,81790.0,0.1528741]
[1742313011788,0.31331598,81791.0,81790.0,0.1838741]
[1742313012203,0.41331598,81791.0,81790.0,0.1838741]
[1742313012407,0.41331598,81791.0,81790.0,0.1528741]
[1742313012705,0.41331598,81791.0,81790.0,0.1222741]
[1742313013010,0.41331598,81791.0,81787.0,0.0611388]
[1742313013011,0.12228,81786.0,81785.0,0.0616]
[1742313013190,0.1222965,81775.0,81774.0,0.10458558]
[1742313013390,0.3608,81777.0,81776.0,0.122295]
[1742313013593,0.392,81777.0,81776.0,0.122295]
[1742313014000,0.5142935,81777.0,81776.0,0.122295]
[1742313014201,0.3608,81777.0,81776.0,0.122295]
[1742313014409,0.12616,81780.0,81779.0,0.1222905]
[1742313015400,0.248449,81780.0,81779.0,0.1222905]
[1742313015593,0.282249,81780.0,81779.0,0.1222905]
[1742313015808,0.284249,81780.0,81779.0,0.1222905]
[1742313016408,0.314749,81780.0,81779.0,0.1222905]
[1742313017319,0.675549,81780.0,81779.0,0.1222905]
[1742313017500,0.1222965,81775.0,81774.0,0.1222962]
[1742313017701,0.1223129,81764.0,81763.0,0.1532136]
[1742313017907,0.2484729,81764.0,81763.0,0.1532136]
[1742313018311,0.4119729,81764.0,81763.0,0.1532136]
[1742313018810,0.4119729,81764.0,81763.0,0.16566866]
[1742313018995,0.3119729,81764.0,81763.0,0.16566866]
[1742313019202,0.1834754,81762.0,81761.0,0.122317]
[1742313019397,0.2834754,81762.0,81761.0,0.122317]
[1742313019612,0.2242754,81762.0,81761.0,0.122317]
[1742313020313,0.2834754,81762.0,81761.0,0.122317]
[1742313020699,0.1834754,81762.0,81761.0,0.122317]
[1742313021613,0.1853754,81762.0,81761.0,0.122317]
[1742313022005,0.1,81762.0,81761.0,0.122317]
[1742313022608,0.1,81769.0,81768.0,0.122307]
[1742313022807,0.12616,81769.0,81768.0,0.122307]
[1742313023214,0.12616,81769.0,81768.0,0.155607]
[1742313023508,0.2813637,81771.0,81770.0,0.122304]
[1742313023709,0.18986,81771.0,81770.0,0.122304]
[1742313024613,0.00018338,81772.0,81771.0,0.1223025]
[1742313025316,0.00018338,81772.0,81771.0,0.1536025]
[1742313027401,0.12248438,81772.0,81771.0,0.1536025]
[1742313027813,0.15348438,81772.0,81771.0,0.1536025]
[1742313028116,0.18528438,81772.0,81771.0,0.1536025]
[1742313028316,0.00018338,81772.0,81771.0,0.1536025]
[1742313029222,0.12248438,81772.0,81771.0,0.1536025]
[1742313029817,0.15318438,81772.0,81771.0,0.1536025]
[1742313030817,0.18518438,81772.0,81771.0,0.1223025]
[1742313031007,0.18708438,81772.0,81771.0,0.1546025]
[1742313031208,0.06288338,81772.0,81771.0,0.1546025]
[1742313032916,0.18518438,81772.0,81771.0,0.1546025]
[1742313033118,0.18518438,81772.0,81771.0,0.1853025]
[1742313033316,0.06478338,81772.0,81748.0,0.00902204]
[1742313033517,0.1223159,81762.0,81761.0,0.03234132]
[1742313033823,0.2223159,81762.0,81761.0,0.03234132]
[1742313034023,0.0324,81762.0,81761.0,0.15465692]
[1742313034223,0.0647,81762.0,81761.0,0.27697272]
[1742313034725,0.12612,81767.0,81764.0,0.0611564]
[1742313034924,0.0024458,81771.0,81770.0,0.122304]
[1742313035309,0.0024458,81771.0,81770.0,0.155204]
[1742313036220,0.2548483,81771.0,81770.0,0.186804]
[1742313036413,0.6156483,81771.0,81770.0,0.122304]
[1742313037018,0.0611563,81765.0,81761.0,0.12405112]
[1742313037324,0.1223159,81762.0,81761.0,0.00074132]
[1742313037620,0.2223159,81762.0,81761.0,0.12305722]
[1742313037923,0.2851159,81762.0,81761.0,0.12305722]
[1742313038517,0.1851159,81762.0,81761.0,0.12305722]
[1742313038712,0.5459159,81762.0,81761.0,0.12305722]
[1742313039028,0.5867159,81762.0,81761.0,0.12305722]
[1742313039226,0.4644,81762.0,81761.0,0.12305722]
[1742313039426,0.42475872,81762.0,81761.0,0.1223159]
[1742313039729,0.52285872,81762.0,81761.0,0.1223159]
[1742313040027,0.42475872,81762.0,81761.0,0.1223159]
[1742313041130,0.64517462,81762.0,81761.0,0.1223159]
[1742313041531,0.58597462,81762.0,81761.0,0.1223159]
[1742313042025,0.1223279,81754.0,81753.0,0.1223279]
[1742313042218,0.4831279,81754.0,81753.0,0.1223279]
[1742313042422,0.5155279,81754.0,81753.0,0.1223279]
[1742313042620,0.1223354,81749.0,81748.0,0.1529359]
[1742313042830,0.1223711,81728.0,81727.0,0.1835438]
[1742313043031,0.4368201,81749.0,81716.0,0.88868]
[1742313043032,0.12612,81734.0,81733.0,0.1223593]
[1742313043222,0.0611752,81739.0,81730.0,0.0611814]
[1742313043223,0.12612,81735.0,81734.0,0.1835329]
[1742313044127,0.3608,81741.0,81740.0,0.1223489]
[1742313044633,0.3608,81741.0,81740.0,0.2159489]
[1742313044933,0.00018349,81742.0,81740.0,0.2159489]
[1742313044934,0.00018349,81742.0,81741.0,0.1223474]
[1742313045133,0.12612,81754.0,81741.0,0.5435474]
[1742313045435,0.3608,81758.0,81757.0,0.1223234]
[1742313045615,0.48696,81758.0,81757.0,0.1223234]
[1742313045820,0.48696,81758.0,81757.0,0.1524234]
[1742313046524,0.48696,81758.0,81757.0,0.1827234]
[1742313047135,0.49196,81758.0,81757.0,0.1223234]
[1742313047630,0.15796,81760.0,81759.0,0.1223204]
[1742313048028,0.15796,81760.0,81759.0,0.1846204]
[1742313050336,0.0318,81760.0,81759.0,0.19720255]
[1742313050532,0.3608,81763.0,81762.0,0.1223159]
[1742313050834,0.00018349,81766.0,81765.0,0.1223115]
[1742313051033,0.00018349,81766.0,81765.0,0.1535115]
[1742313051224,0.00018349,81766.0,81765.0,0.1850115]
[1742313053436,0.12249349,81766.0,81765.0,0.1850115]
[1742313053633,0.1223189,81760.0,81759.0,0.01258215]
[1742313053834,0.1223279,81754.0,81753.0,0.0326]
[1742313054140,0.1223279,81754.0,81753.0,0.1549286]
[1742313054323,0.1261615,81759.0,81754.0,0.0611631]
[1742313054530,0.0331,81759.0,81758.0,0.1223219]
[1742313054729,0.1554204,81759.0,81758.0,0.1223219]
[1742313054929,0.1554204,81759.0,81758.0,0.1872219]
[1742313055328,0.2554204,81759.0,81758.0,0.1223219]
[1742313055632,0.1554204,81759.0,81758.0,0.1223219]
[1742313055829,0.1554204,81759.0,81758.0,0.1872219]
[1742313056436,0.0331,81759.0,81758.0,0.1872219]
[1742313056734,0.1554204,81759.0,81758.0,0.1872219]
[1742313057137,0.1564204,81759.0,81758.0,0.1872219]
[1742313057433,0.1564204,81759.0,81758.0,0.19961021]
[1742313057631,0.1835001,81752.0,81751.0,0.1834908]
[1742313058341,0.1835001,81752.0,81751.0,0.2166908]
[1742313059840,0.1223339,81750.0,81749.0,0.00018349]
[1742313060033,0.4831339,81750.0,81749.0,0.00018349]
[1742313060336,0.5157803,81750.0,81749.0,0.12234786]
[1742313060534,0.5157803,81750.0,81749.0,0.05346697]
[1742313061123,0.5187803,81750.0,81749.0,0.11476697]
[1742313061336,0.5217803,81750.0,81749.0,0.11476697]
[1742313061636,0.5217803,81750.0,81749.0,0.0613]
[1742313061940,0.2446918,81745.0,81744.0,0.1223354]
[1742313062121,0.189738,81745.0,81741.0,0.0611731]
[1742313062325,0.2161632,81744.0,81743.0,0.1223429]
[1742313062729,0.32713521,81744.0,81743.0,0.14487519]
[1742313062925,0.0611775,81736.0,81731.0,0.0913804]
[1742313063135,0.0611775,81736.0,81735.0,0.0608]
[1742313063335,0.0721479,81736.0,81735.0,0.0608]
[1742313063725,0.0721479,81736.0,81735.0,0.1831563]
[1742313063934,0.0109704,81736.0,81735.0,0.1831563]
[1742313064325,0.00363009,81744.0,81743.0,0.1223444]
[1742313064634,0.0034474,81744.0,81743.0,0.4831444]
[1742313064858,0.0034474,81744.0,81743.0,0.5750444]
[1742313065527,0.0024474,81744.0,81743.0,0.5750444]
[1742313066536,0.0010001,81744.0,81743.0,0.5750444]
[1742313067238,0.32940677,81754.0,81748.0,0.1223369]
[1742313067642,0.32940677,81754.0,81748.0,0.1838369]
[1742313068141,0.45173567,81754.0,81753.0,0.1223294]
[1742313068330,0.32940677,81754.0,81753.0,0.1223294]
[1742313068837,0.32940677,81754.0,81753.0,0.1842294]
[1742313069434,0.0611603,81759.0,81758.0,0.183479]
[1742313070529,0.0611618,81757.0,81755.0,0.061163]
[1742313070734,0.1834867,81757.0,81756.0,0.1223249]
[1742313071233,0.1834867,81757.0,81756.0,0.1540249]
[1742313071431,0.2834867,81757.0,81756.0,0.1842249]
[1742313071737,0.2834867,81757.0,81756.0,0.1223249]
[1742313072037,0.2884867,81757.0,81756.0,0.1223249]
[1742313072540,0.2884867,81757.0,81756.0,0.1834249]
[1742313072842,0.2874867,81757.0,81756.0,0.1834249]
[1742313073032,0.1874867,81757.0,81756.0,0.1834249]
[1742313073233,0.2342867,81757.0,81756.0,0.1834249]
[1742313073643,0.009,81757.0,81756.0,0.1834249]
[1742313073949,0.004,81757.0,81756.0,0.2160249]
[1742313074128,0.009,81757.0,81756.0,0.2160249]
[1742313075037,0.007,81757.0,81756.0,0.2160249]
[1742313076541,0.004,81757.0,81756.0,0.2160249]
[1742313076935,0.1263234,81757.0,81756.0,0.1834249]
[1742313077134,0.004,81757.0,81756.0,0.1834249]
[1742313078147,0.004,81757.0,81756.0,0.3129849]
[1742313080532,1e-07,81757.0,81756.0,0.3129849]
[1742313080839,0.0317,81770.0,81761.0,0.1223174]
[1742313081149,0.0317,81770.0,81761.0,0.4831174]
[1742313081336,0.0317,81770.0,81761.0,0.5467174]
[1742313081945,0.01132248,81762.0,81761.0,0.50846497]
[1742313082146,8e-08,81762.0,81761.0,0.50846497]
[1742313082335,0.28989477,81771.0,81770.0,0.122304]
[1742313082536,0.28989477,81771.0,81770.0,0.483104]
[1742313082732,0.22060497,81771.0,81770.0,0.546704]
[1742313083341,0.03747525,81773.0,81772.0,0.122301]
[1742313083541,0.00018349,81779.0,81778.0,0.122292]
[1742313083745,0.00018349,81779.0,81778.0,0.612572]
[1742313084146,0.00018349,81779.0,81778.0,0.677672]
[1742313084357,0.00018349,81779.0,81778.0,2.177672]
[1742313084740,0.00018349,81779.0,81778.0,0.55730184]
[1742313084935,0.00218349,81779.0,81778.0,0.19650184]
[1742313085149,0.22447399,81779.0,81778.0,0.16350184]
[1742313085453,0.15747399,81779.0,81778.0,0.16350184]
[1742313085644,0.18767399,81779.0,81778.0,0.16350184]
[1742313085858,0.06538349,81779.0,81778.0,0.16350184]
[1742313086239,0.06538349,81779.0,81778.0,0.19650184]
[1742313086441,0.28767399,81779.0,81778.0,0.13140184]
[1742313086739,0.28767399,81779.0,81778.0,0.00910984]
[1742313087045,0.1834395,81778.0,81777.0,0.1222928]
[1742313087247,0.0611542,81768.0,81766.0,0.1223053]
[1742313087445,0.4608,81767.0,81766.0,0.1223053]
[1742313087756,0.5252,81767.0,81766.0,0.1223053]
[1742313088147,0.0611557,81765.0,81762.0,0.06134069]
[1742313088352,0.1223144,81763.0,81762.0,0.12249829]
[1742313088848,0.1867144,81763.0,81762.0,0.12249829]
[1742313089043,0.3138344,81763.0,81762.0,0.12249829]
[1742313089239,0.3554344,81763.0,81762.0,0.12249829]
[1742313089853,0.3446344,81763.0,81762.0,0.00018349]
[1742313090050,0.4152804,81763.0,81762.0,0.00018349]
[1742313090748,0.4152804,81763.0,81762.0,0.00418349]
[1742313091054,0.4152804,81763.0,81762.0,0.12649939]
[1742313091548,0.1223279,81754.0,81753.0,0.01259865]
[1742313091751,0.1028705,81746.0,81730.0,0.0322]
[1742313092051,0.2447158,81739.0,81738.0,0.0611751]
[1742313092350,0.1223553,81739.0,81738.0,0.01279209]
[1742313092551,0.1223553,81739.0,81736.0,0.00913328]
[1742313092552,0.1223534,81737.0,81736.0,0.00913328]
[1742313092751,0.1223548,81736.0,81735.0,0.1223557]
[1742313092952,0.1223623,81731.0,81730.0,0.00018349]
[1742313093257,0.4831623,81731.0,81730.0,0.13508407]
[1742313093452,0.4831623,81731.0,81730.0,0.12254489]
[1742313093642,0.5485623,81731.0,81730.0,0.12254489]
[1742313093843,0.54847947,81731.0,81730.0,0.131921]
[1742313094144,0.65092647,81731.0,81730.0,0.00018349]
[1742313094339,0.65092647,81731.0,81730.0,0.00218349]
[1742313094741,0.65092647,81731.0,81730.0,0.00318349]
[1742313094941,0.65092647,81731.0,81730.0,0.12554729]
[1742313095151,0.428647,81731.0,81730.0,0.12554729]
[1742313095353,0.428647,81731.0,81730.0,0.12354729]
[1742313095556,0.396147,81731.0,81730.0,0.15434729]
[1742313095756,0.363247,81731.0,81730.0,0.18444729]
[1742313096256,0.0654,81740.0,81739.0,0.1223504]
[1742313096453,0.1877489,81740.0,81739.0,0.1223504]
[1742313096853,0.0654,81740.0,81739.0,0.1223504]
[1742313097160,0.0654,81740.0,81739.0,0.1533504]
[1742313097549,0.3608,81741.0,81740.0,0.1223489]
[1742313097744,0.3608,81741.0,81740.0,0.1849489]
[1742313098357,0.0658,81746.0,81745.0,0.1223414]
[1742313098661,0.1881399,81746.0,81745.0,0.1223414]
[1742313099355,0.1881399,81746.0,81745.0,0.1551414]
[1742313099560,0.2881399,81746.0,81745.0,0.16753077]
[1742313099759,0.2199399,81746.0,81745.0,0.16753077]
[1742313099944,0.2189399,81746.0,81745.0,0.13473077]
[1742313100264,0.1871399,81746.0,81745.0,0.13473077]
[1742313100647,0.1891399,81746.0,81745.0,0.13473077]
[1742313100851,0.1921399,81746.0,81745.0,0.13473077]
[1742313101160,0.2921399,81746.0,81745.0,0.13473077]
[1742313101458,0.1921399,81746.0,81745.0,0.13473077]
[1742313101760,0.2921399,81746.0,81745.0,0.13473077]
[1742313102150,0.1921399,81746.0,81745.0,0.13473077]
[1742313102455,0.0698,81746.0,81745.0,0.13473077]
[1742313102760,0.0698,81746.0,81745.0,0.19833077]
[1742313103342,0.2921399,81746.0,81745.0,0.01238937]
[1742313103547,0.3513098,81746.0,81745.0,0.1223414]
[1742313103743,0.3533098,81746.0,81745.0,0.1223414]
[1742313104362,0.2533098,81746.0,81745.0,0.1223414]
[1742313104665,0.3533098,81746.0,81745.0,0.1223414]
[1742313104859,0.2543098,81746.0,81745.0,0.1223414]
[1742313105166,0.3543098,81746.0,81745.0,0.1223414]
[1742313105365,0.1319699,81746.0,81745.0,0.1223414]
[1742313105557,0.2319699,81746.0,81745.0,0.1223414]
[1742313105754,0.0708,81746.0,81745.0,0.1223414]
[1742313105964,0.0708,81746.0,81745.0,0.1850414]
[1742313106261,0.006,81746.0,81745.0,0.1850414]
[1742313106464,0.007,81746.0,81745.0,0.23070164]
[1742313106660,0.0699,81746.0,81745.0,0.23070164]
[1742313106965,0.0374,81746.0,81745.0,0.23070164]
[1742313107360,0.0344,81746.0,81745.0,0.23070164]
[1742313107574,0.005,81746.0,81745.0,0.23070164]
[1742313108058,0.003,81746.0,81745.0,0.23070164]
[1742313109164,0.0331,81746.0,81745.0,0.23070164]
[1742313109756,0.1554399,81746.0,81745.0,0.23070164]
[1742313109957,0.0331,81746.0,81745.0,0.23070164]
[1742313110158,0.0331,81746.0,81745.0,0.19770164]
[1742313110468,0.1878399,81746.0,81745.0,0.01266024]
[1742313110672,0.3483799,81746.0,81745.0,0.1223414]
[1742313111057,0.3463799,81746.0,81745.0,0.1223414]
[1742313111363,0.3801799,81746.0,81745.0,0.1223414]
[1742313111566,0.1223444,81743.0,81742.0,0.1835154]
[1742313111866,0.2223444,81743.0,81742.0,0.1835154]
[1742313112070,0.2863444,81743.0,81742.0,0.2137154]
[1742313112260,0.2863444,81743.0,81742.0,0.2469154]
[1742313112569,0.1863444,81743.0,81742.0,0.25941074]
[1742313112970,0.0333,81743.0,81742.0,0.25941074]
[1742313113165,0.005,81746.0,81745.0,0.1223414]
[1742313113372,0.007,81746.0,81745.0,0.1857414]
[1742313114168,0.003,81746.0,81745.0,0.1857414]
[1742313114367,0.0341,81746.0,81745.0,0.1857414]
[1742313114565,0.1534399,81746.0,81745.0,0.1857414]
[1742313115070,0.1554399,81746.0,81745.0,0.1857414]
[1742313115270,0.1564399,81746.0,81745.0,0.1857414]
[1742313115471,0.0341,81746.0,81745.0,0.1857414]
[1742313116367,0.1882399,81746.0,81745.0,0.1857414]
[1742313116670,0.1897399,81746.0,81745.0,0.1857414]
[1742313116858,0.2196399,81746.0,81745.0,0.0634]
[1742313117054,0.2198399,81746.0,81745.0,0.1857414]
[1742313117271,0.2878399,81746.0,81745.0,0.0634]
[1742313117472,0.2878399,81746.0,81745.0,0.0302]
[1742313117770,0.2898399,81746.0,81745.0,0.1525414]
[1742313118175,0.2928399,81746.0,81745.0,0.1525414]
[1742313118377,0.2928399,81746.0,81745.0,0.1223414]
[1742313119375,0.2918399,81746.0,81745.0,0.1223414]
[1742313119572,0.2236399,81746.0,81745.0,0.1223414]
[1742313119777,0.2928399,81746.0,81745.0,0.1223414]
[1742313119959,0.1705,81746.0,81743.0,0.0611716]
[1742313120164,0.4831429,81744.0,81743.0,0.0611716]
[1742313120566,0.6452429,81744.0,81743.0,0.0928716]
[1742313120790,0.6452429,81744.0,81743.0,0.1241716]
[1742313121366,0.009,81746.0,81745.0,0.1223414]
[1742313121367,0.004,81746.0,81745.0,0.1223414]
[1742313121569,0.00018349,81747.0,81746.0,0.1223399]
[1742313121770,0.00018349,81747.0,81746.0,0.1540399]
[1742313121970,0.00018349,81747.0,81746.0,0.1853399]
[1742313122171,0.13058349,81747.0,81746.0,0.1853399]
[1742313122377,0.03058349,81747.0,81746.0,0.1853399]
[1742313122981,0.15292189,81747.0,81746.0,0.1853399]
[1742313123369,0.06328349,81747.0,81746.0,0.1853399]
[1742313123771,0.18562189,81747.0,81746.0,0.1853399]
[1742313123975,0.06528349,81747.0,81746.0,0.2170399]
[1742313124385,0.06828349,81747.0,81746.0,0.2170399]
[1742313125384,9e-08,81747.0,81746.0,0.2170399]
[1742313125579,0.04417972,81767.0,81766.0,0.12231]
[1742313125886,0.01147972,81767.0,81766.0,0.12231]
[1742313126072,0.3608,81771.0,81770.0,0.05344094]
[1742313126570,0.4831025,81771.0,81770.0,0.08344094]
[1742313126772,0.4831025,81771.0,81770.0,0.11664094]
[1742313126974,0.3608,81771.0,81770.0,0.11664094]
[1742313127672,0.3658,81771.0,81770.0,0.11664094]
[1742313127876,0.3658,81771.0,81770.0,0.05344094]
[1742313128179,0.4881025,81771.0,81770.0,0.05344094]
[1742313128379,0.5931025,81771.0,81770.0,0.06573612]
[1742313128579,0.6565025,81771.0,81770.0,0.06573612]
[1742313128978,0.6565025,81771.0,81770.0,0.01229518]
[1742313129175,0.1834643,81768.0,81765.0,0.0632]
[1742313129381,0.19188,81767.0,81766.0,0.061155]
[1742313129681,0.19188,81767.0,81749.0,0.12848]
[1742313129682,0.29188,81767.0,81759.0,0.0611596]
[1742313129881,0.29188,81767.0,81749.0,0.1896474]
[1742313129882,0.1223144,81763.0,81761.0,0.0611586]
[1742313130271,0.3171144,81763.0,81761.0,0.01262176]
[1742313130471,0.1223159,81762.0,81761.0,0.01262176]
[1742313130685,0.1223249,81756.0,81755.0,0.0090115]
[1742313130888,0.6116378,81755.0,81732.0,0.0611797]
[1742313131180,0.1223578,81734.0,81733.0,0.032]
[1742313131384,0.1223578,81734.0,81733.0,0.1667891]
[1742313131580,0.2841578,81734.0,81733.0,0.1667891]
[1742313131775,0.1841578,81734.0,81733.0,0.1990891]
[1742313131976,0.2841578,81734.0,81733.0,0.1990891]
[1742313132170,0.2841578,81734.0,81733.0,0.17634802]
[1742313132577,0.2841578,81734.0,81733.0,0.1860593]
[1742313132976,0.1841578,81734.0,81733.0,0.1860593]
[1742313133175,0.2841578,81734.0,81733.0,0.1860593]
[1742313133575,0.2851578,81734.0,81733.0,0.1860593]
[1742313133879,0.1851578,81734.0,81733.0,0.1860593]
[1742313134073,0.0648,81734.0,81733.0,0.1860593]
[1742313134274,0.1871578,81734.0,81733.0,0.1860593]
[1742313134681,0.2871578,81734.0,81733.0,0.1860593]
[1742313135073,0.1871578,81734.0,81733.0,0.19535496]
[1742313135274,0.2871578,81734.0,81733.0,0.19535496]
[1742313135580,0.003,81734.0,81733.0,0.19535496]
[1742313136083,0.0611603,81759.0,81736.0,0.0611774]
[1742313136283,0.0652,81755.0,81747.0,0.1223384]
[1742313136487,0.1223304,81753.0,81747.0,0.1223384]
[1742313136786,0.0611643,81754.0,81747.0,0.1223384]
[1742313136981,0.0652,81755.0,81747.0,0.1856384]
[1742313137188,0.1223286,81754.0,81747.0,0.1856384]
[1742313137388,0.0611647,81753.0,81747.0,0.1856384]
[1742313137579,0.1263635,81755.0,81747.0,0.1856384]
[1742313137780,0.3117001,81748.0,81747.0,0.1856384]
[1742313138580,0.36098349,81756.0,81755.0,0.1223264]
[1742313138581,0.00018349,81756.0,81755.0,0.1223264]
[1742313139180,0.0317,81766.0,81765.0,0.1223115]
[1742313139578,0.15401,81766.0,81765.0,0.1857115]
[1742313140088,0.0317,81766.0,81765.0,0.1857115]
[1742313140788,0.1316,81772.0,81771.0,0.1223025]
[1742313140985,0.1316,81772.0,81771.0,0.13485845]
[1742313141183,0.0316,81772.0,81771.0,0.16685845]
[1742313141387,0.3608,81773.0,81772.0,0.122301]